[Event "NJSK 2022 Jeugd B"]
[Site "Almelo, Netherlands"]
[Date "2022.05.01"]
[Round "1.5"]
[White "Klaren, Oscar"]
[Black "Van Egmond, Tom"]
[Result "1-0"]
[TimeControl "90min/40moves + 30min + 30sec/move"]
[WhiteElo "1878"]
[BlackElo "1672"]

1. e4 {[%clk 01:30:58]} e5 {[%clk 01:30:56]} {[%emt 00:00:05]} 2. Nf3 {[%clk
01:31:23]} {[%emt 00:00:05]} Nc6 {[%clk 01:31:21]} {[%emt 00:00:06]} 3. Nc3
{[%clk 01:31:48]} {[%emt 00:00:05]} Nf6 {[%clk 01:31:33]} {[%emt 00:00:17]} 4.
d4 {[%clk 01:32:13]} {[%emt 00:00:05]} exd4 {[%clk 01:31:47]} {[%emt 00:00:17]}
5. Nxd4 {[%clk 01:32:38]} {[%emt 00:00:04]} Nxe4 {[%clk 01:32:07]} {[%emt
00:00:10]} 6. Nxe4 {[%clk 01:33:00]} {[%emt 00:00:07]} Qe7 {[%clk 01:32:34]}
{[%emt 00:00:04]} 7. f3 {[%clk 01:32:45]} {[%emt 00:00:45]} d5 {[%clk
01:32:58]} {[%emt 00:00:06]} 8. Bb5 {[%clk 01:33:10]} {[%emt 00:00:05]} Bd7
{[%clk 01:33:23]} {[%emt 00:00:05]} 9. Bxc6 {[%clk 01:33:34]} {[%emt 00:00:06]}
bxc6 {[%clk 01:33:47]} {[%emt 00:00:07]} 10. O-O {[%clk 01:33:58]} {[%emt
00:00:05]} dxe4 {[%clk 01:34:07]} {[%emt 00:00:11]} 11. Re1 {[%clk 01:34:21]}
{[%emt 00:00:06]} O-O-O {[%clk 01:33:47]} {[%emt 00:00:50]} 12. Rxe4 {[%clk
01:34:44]} {[%emt 00:00:06]} Qb4 {[%clk 01:34:10]} {[%emt 00:00:07]} 13. Nb3
{[%clk 01:34:39]} {[%emt 00:00:36]} Qb7 {[%clk 01:34:31]} {[%emt 00:00:09]} 14.
Qe2 {[%clk 01:32:49]} {[%emt 00:02:19]} Bd6 {[%clk 01:34:01]} {[%emt 00:01:01]}
15. Be3 {[%clk 01:31:11]} {[%emt 00:02:08]} Rhe8 {[%clk 01:18:11]} {[%emt
00:16:20]} 16. Rxe8 {[%clk 01:28:04]} {[%emt 00:03:36]} Rxe8 {[%clk 01:18:05]}
{[%emt 00:00:36]} 17. Qf2 {[%clk 01:28:16]} {[%emt 00:00:18]} Qb5 {[%clk
00:52:22]} {[%emt 00:26:13]} 18. g3 {[%clk 01:07:18]} {[%emt 00:21:28]} h5
{[%clk 00:34:22]} {[%emt 00:18:30]} 19. a4 {[%clk 00:48:35]} {[%emt 00:19:14]}
Qc4 {[%clk 00:32:48]} {[%emt 00:19:59]} 20. Rd1 {[%clk 00:34:23]} {[%emt
00:14:41]} Qe6 {[%clk 00:28:25]} {[%emt 00:04:53]} 21. Bc5 {[%clk 00:27:10]}
{[%emt 00:07:43]} Qe2 {[%clk 00:23:26]} {[%emt 00:05:30]} 22. Rd2 {[%clk
00:25:54]} {[%emt 00:01:46]} Qxf2+ {[%clk 00:16:14]} {[%emt 00:07:41]} 23. Kxf2
{[%clk 00:25:52]} {[%emt 00:00:32]} Be6 {[%clk 00:14:24]} {[%emt 00:02:21]} 24.
Bxd6 {[%clk 00:24:52]} {[%emt 00:01:30]} cxd6 {[%clk 00:14:50]} {[%emt
00:00:04]} 25. Rxd6 {[%clk 00:24:42]} Bd5 {[%clk 00:14:18]} {[%emt 00:01:40]}
26. Nd4 {[%clk 00:14:05]} {[%emt 00:11:07]} Kc7 {[%clk 00:14:15]} {[%emt
00:00:34]} 27. Nb5+ {[%clk 00:14:29]} {[%emt 00:00:06]} cxb5 {[%clk 00:12:22]}
{[%emt 00:02:24]} 28. Rxd5 {[%clk 00:14:53]} {[%emt 00:00:05]} bxa4 {[%clk
00:12:46]} {[%emt 00:00:06]} 29. Ra5 {[%clk 00:10:07]} {[%emt 00:05:17]} Kb6
{[%clk 00:07:09]} {[%emt 00:06:06]} 30. Rxa4 {[%clk 00:10:13]} {[%emt
00:00:24]} a5 {[%clk 00:05:55]} {[%emt 00:01:44]} 31. Rd4 {[%clk 00:09:45]}
{[%emt 00:00:56]} Kc6 {[%clk 00:05:05]} {[%emt 00:01:22]} 32. Rf4 {[%clk
00:09:38]} {[%emt 00:00:35]} Kd6 {[%clk 00:02:48]} {[%emt 00:02:49]} 33. Rc4
{[%clk 00:07:13]} {[%emt 00:02:54]} g6 {[%clk 00:01:59]} {[%emt 00:01:20]} 34.
h4 {[%clk 00:06:50]} {[%emt 00:00:52]} Re7 {[%clk 00:01:51]} {[%emt 00:00:38]}
35. b3 {[%clk 00:06:57]} {[%emt 00:00:24]} Re5 {[%clk 00:01:42]} {[%emt
00:00:39]} 36. Rf4 {[%clk 00:05:34]} {[%emt 00:01:52]} Ke6 {[%clk 00:01:39]}
{[%emt 00:00:34]} 37. Rd4 {[%clk 00:05:14]} {[%emt 00:00:49]} Rc5 {[%clk
00:00:57]} {[%emt 00:01:13]} 38. Re4+ {[%clk 00:04:49]} {[%emt 00:00:55]} Re5
{[%clk 00:00:36]} {[%emt 00:00:52]} 39. Ke3 {[%clk 00:04:35]} {[%emt 00:00:43]}
Kd6 {[%clk 00:00:41]} {[%emt 00:00:25]} 40. Rxe5 {[%clk 00:04:35]} {[%emt
00:00:30]} Kxe5 {[%clk 00:01:10]} 41. c4 {[%clk 00:04:51]} {[%emt 00:00:13]} f6
{[%clk 00:00:44]} {[%emt 00:00:57]} 42. f4+ {[%clk 00:04:03]} {[%emt 00:01:18]}
Kd6 {[%clk 00:24:44]} {[%emt 00:06:29]} 43. Kd4 {[%clk 00:34:27]} {[%emt
00:00:07]} Kc6 {[%clk 00:25:07]} {[%emt 00:00:08]} 44. c5 {[%clk 00:34:37]}
{[%emt 00:00:19]} Kb5 {[%clk 00:25:03]} {[%emt 00:00:34]} 45. Kd5 {[%clk
00:34:55]} 1-0

[Event "NJSK 2022 Jeugd B"]
[Site "Almelo, Netherlands"]
[Date "2022.05.01"]
[Round "1.6"]
[White "Aarts, Joaquin"]
[Black "Bakija, Alan"]
[Result "1-0"]
[TimeControl "90min/40moves + 30min + 30sec/move"]
[WhiteElo "1631"]
[BlackElo "1868"]

1. d4 {[%clk 01:30:55]} {[%emt 00:00:05]} d5 {[%clk 01:30:49]} {[%emt
00:00:13]} 2. Bf4 {[%clk 01:30:20]} {[%emt 00:01:04]} c6 {[%clk 01:31:15]}
{[%emt 00:00:04]} 3. c3 {[%clk 01:28:42]} {[%emt 00:02:08]} Bf5 {[%clk
01:31:02]} {[%emt 00:00:44]} 4. Nd2 {[%clk 01:27:50]} {[%emt 00:01:21]} Nf6
{[%clk 01:30:46]} {[%emt 00:00:46]} 5. f3 {[%clk 01:28:14]} {[%emt 00:00:06]}
Nbd7 {[%clk 01:24:02]} {[%emt 00:07:15]} 6. Qb3 {[%clk 01:25:30]} {[%emt
00:03:14]} e5 {[%clk 00:54:41]} {[%emt 00:29:50]} 7. dxe5 {[%clk 00:39:37]}
{[%emt 00:46:23]} Nc5 {[%clk 00:54:44]} {[%emt 00:00:28]} 8. Qd1 {[%clk
00:38:47]} {[%emt 00:01:20]} Nh5 {[%clk 00:48:04]} {[%emt 00:07:09]} 9. Be3
{[%clk 00:32:27]} {[%emt 00:06:50]} Be7 {[%clk 00:42:49]} {[%emt 00:05:45]} 10.
Nb3 {[%clk 00:30:52]} {[%emt 00:02:05]} Nd7 {[%clk 00:26:01]} {[%emt 00:35:11]}
11. Nd4 {[%clk 00:30:51]} {[%emt 00:00:30]} Be6 {[%clk 00:24:41]} {[%emt
00:01:51]} 12. f4 {[%clk 00:28:11]} {[%emt 00:03:11]} g6 {[%clk 00:21:55]}
{[%emt 00:03:16]} 13. Nxe6 {[%clk 00:23:47]} {[%emt 00:04:54]} fxe6 {[%clk
00:22:21]} {[%emt 00:00:04]} 14. Nf3 {[%clk 00:23:37]} {[%emt 00:00:40]} c5
{[%clk 00:18:18]} {[%emt 00:04:33]} 15. g3 {[%clk 00:23:02]} {[%emt 00:01:04]}
Qc7 {[%clk 00:17:54]} {[%emt 00:00:54]} 16. Bh3 {[%clk 00:17:52]} {[%emt
00:05:39]} Ng7 {[%clk 00:17:56]} {[%emt 00:00:29]} 17. O-O {[%clk 00:15:16]}
{[%emt 00:03:06]} O-O {[%clk 00:15:36]} {[%emt 00:02:50]} 18. Rc1 {[%clk
00:13:29]} {[%emt 00:02:17]} Rfd8 {[%clk 00:09:43]} {[%emt 00:06:23]} 19. Bf2
{[%clk 00:08:38]} {[%emt 00:05:21]} g5 {[%clk 00:07:50]} {[%emt 00:02:23]} 20.
e3 {[%clk 00:06:23]} {[%emt 00:02:45]} h6 {[%clk 00:08:00]} {[%emt 00:00:20]}
21. Qc2 {[%clk 00:06:42]} {[%emt 00:00:12]} Nf8 {[%clk 00:07:29]} {[%emt
00:01:01]} 22. Rfd1 {[%clk 00:06:40]} {[%emt 00:00:30]} Qc6 {[%clk 00:07:46]}
{[%emt 00:00:14]} 23. Nd2 {[%clk 00:06:06]} {[%emt 00:01:03]} h5 {[%clk
00:06:37]} {[%emt 00:01:40]} 24. e4 {[%clk 00:05:36]} {[%emt 00:01:00]} g4
{[%clk 00:05:34]} {[%emt 00:01:33]} 25. Bg2 {[%clk 00:05:53]} {[%emt 00:00:12]}
Nd7 {[%clk 00:04:42]} {[%emt 00:01:23]} 26. exd5 {[%clk 00:05:37]} {[%emt
00:00:46]} exd5 {[%clk 00:05:09]} {[%emt 00:00:04]} 27. c4 {[%clk 00:05:54]}
{[%emt 00:00:12]} Nb6 {[%clk 00:04:08]} {[%emt 00:01:32]} 28. cxd5 {[%clk
00:04:36]} {[%emt 00:01:47]} Nxd5 {[%clk 00:04:31]} {[%emt 00:00:06]} 29. Qb3
{[%clk 00:03:00]} {[%emt 00:02:07]} Qe6 {[%clk 00:04:41]} {[%emt 00:00:20]} 30.
Bxc5 {[%clk 00:02:37]} {[%emt 00:00:53]} Nf5 {[%clk 00:01:47]} {[%emt
00:03:24]} 31. Ne4 {[%clk 00:02:20]} {[%emt 00:00:47]} Nc7 {[%clk 00:00:57]}
{[%emt 00:01:20]} 32. Bxe7 {[%clk 00:02:00]} {[%emt 00:00:50]} Rxd1+ {[%clk
00:01:19]} {[%emt 00:00:09]} 33. Rxd1 {[%clk 00:01:31]} {[%emt 00:00:58]} Nxe7
{[%clk 00:01:02]} {[%emt 00:00:47]} 34. Nf6+ {[%clk 00:01:18]} {[%emt
00:00:42]} Kf8 {[%clk 00:00:58]} {[%emt 00:00:35]} 35. Qxb7 {[%clk 00:01:06]}
{[%emt 00:00:42]} Rc8 {[%clk 00:00:47]} {[%emt 00:00:42]} 36. Nh7+ {[%clk
00:00:48]} {[%emt 00:00:48]} Ke8 {[%clk 00:00:49]} {[%emt 00:00:28]} 37. Bc6+
{[%clk 00:00:51]} {[%emt 00:00:26]} Qxc6 {[%clk 00:00:53]} {[%emt 00:00:27]} 38.
Nf6+ {[%clk 00:01:05]} {[%emt 00:00:15]} Kf8 {[%clk 00:00:52]} {[%emt
00:00:31]} 39. Nh7+ {[%clk 00:00:49]} {[%emt 00:00:45]} Kf7 {[%emt 00:00:44]}
40. Ng5+ {[%clk 00:00:44]} {[%emt 00:00:34]} Ke8 {[%clk 00:00:56]} {[%emt
00:00:14]} 41. Qxc6+ {[%clk 00:00:32]} {[%emt 00:00:43]} Nxc6 {[%clk 00:01:20]}
{[%emt 00:00:06]} 42. Rc1 {[%clk 00:00:33]} {[%emt 00:00:28]} Kd7 {[%clk
00:29:37]} {[%emt 00:02:13]} 43. Ne4 {[%clk 00:29:36]} {[%emt 00:01:26]} Nd5
{[%clk 00:27:02]} {[%emt 00:03:06]} 44. Rd1 {[%clk 00:28:15]} {[%emt 00:01:50]}
Nce7 {[%clk 00:21:18]} {[%emt 00:06:15]} 45. f5 {[%clk 00:20:59]} {[%emt
00:07:46]} Kc6 {[%clk 00:08:38]} {[%emt 00:13:11]} 46. f6 {[%clk 00:10:07]}
{[%emt 00:11:22]} Ng6 {[%clk 00:07:48]} {[%emt 00:01:20]} 47. Rc1+ {[%clk
00:08:42]} {[%emt 00:01:54]} Kd7 {[%clk 00:06:14]} {[%emt 00:02:05]} 48. e6+
{[%clk 00:08:51]} {[%emt 00:00:20]} Kd8 {[%clk 00:06:30]} {[%emt 00:00:14]} 49.
e7+ {[%clk 00:08:48]} {[%emt 00:00:33]} Ndxe7 {[%clk 00:06:13]} {[%emt
00:00:48]} 50. fxe7+ {[%clk 00:09:04]} {[%emt 00:00:13]} Nxe7 {[%clk 00:06:34]}
{[%emt 00:00:09]} 51. Rxc8+ {[%clk 00:09:11]} {[%emt 00:00:24]} Kxc8 {[%clk
00:05:37]} {[%emt 00:01:27]} 52. Nf6 {[%clk 00:09:31]} {[%emt 00:00:10]} Kc7
{[%clk 00:02:24]} {[%emt 00:03:43]} 53. Kf2 {[%clk 00:09:06]} {[%emt 00:00:54]}
Kd6 {[%emt 00:00:39]} 54. Nxh5 {[%clk 00:09:16]} {[%emt 00:00:18]} Nd5 {[%clk
00:02:22]} {[%emt 00:00:26]} 55. Nf4 {[%clk 00:09:21]} {[%emt 00:00:24]} Nb4
{[%clk 00:02:20]} {[%emt 00:00:32]} 56. a3 {[%clk 00:09:45]} {[%emt 00:00:07]}
Nc2 {[%clk 00:02:46]} {[%emt 00:00:04]} 57. Ng2 {[%clk 00:09:20]} {[%emt
00:00:54]} Kc5 {[%clk 00:01:13]} {[%emt 00:02:03]} 58. Ne3 {[%clk 00:08:11]}
{[%emt 00:01:39]} Nd4 {[%clk 00:01:33]} {[%emt 00:00:10]} 59. Nxg4 {[%clk
00:07:12]} {[%emt 00:01:29]} Kc4 {[%clk 00:01:59]} {[%emt 00:00:04]} 60. h4
{[%clk 00:01:56]} {[%emt 00:05:46]} Kb3 {[%clk 00:02:24]} {[%emt 00:00:05]} 61.
h5 {[%clk 00:01:55]} {[%emt 00:00:32]} Ne6 {[%clk 00:02:27]} {[%emt 00:00:27]}
62. h6 {[%clk 00:01:36]} {[%emt 00:00:48]} Ng5 {[%clk 00:02:54]} {[%emt
00:00:04]} 63. Nf6 {[%clk 00:01:54]} {[%emt 00:00:11]} Kxb2 {[%clk 00:03:16]}
{[%emt 00:00:09]} 64. h7 {[%clk 00:02:11]} {[%emt 00:00:13]} Nf7 {[%clk
00:03:39]} {[%emt 00:00:06]} 65. a4 {[%clk 00:01:16]} {[%emt 00:01:25]} Kb3
{[%clk 00:03:45]} {[%emt 00:00:24]} 66. a5 {[%clk 00:01:08]} {[%emt 00:00:38]}
Kb4 {[%clk 00:04:08]} {[%emt 00:00:07]} 67. g4 {[%clk 00:00:56]} {[%emt
00:00:42]} Kxa5 {[%clk 00:02:05]} {[%emt 00:02:34]} 68. g5 {[%clk 00:01:18]}
{[%emt 00:00:07]} Nh8 {[%clk 00:02:28]} {[%emt 00:00:08]} 69. Nd5 {[%clk
00:00:56]} {[%emt 00:00:51]} Ka4 {[%clk 00:01:27]} {[%emt 00:01:31]} 70. Nf4
{[%clk 00:01:07]} {[%emt 00:00:20]} a5 {[%clk 00:01:32]} {[%emt 00:00:25]} 71.
g6 {[%clk 00:01:26]} {[%emt 00:00:11]} Nxg6 {[%clk 00:01:54]} {[%emt 00:00:07]}
72. Nxg6 {[%clk 00:01:49]} {[%emt 00:00:07]} Kb3 {[%clk 00:02:15]} {[%emt
00:00:09]} 73. h8=Q {[%clk 00:02:10]} {[%emt 00:00:08]} a4 {[%clk 00:02:32]}
{[%emt 00:00:14]} 74. Qa1 {[%clk 00:02:35]} {[%emt 00:00:06]} Kc4 {[%emt
00:00:11]} 1-0

[Event "NJSK 2022 Jeugd B"]
[Site "Almelo, Netherlands"]
[Date "2022.05.01"]
[Round "1.7"]
[White "Wage, Sander"]
[Black "De Heij, Mees"]
[Result "1-0"]
[TimeControl "90min/40moves + 30min + 30sec/move"]
[WhiteElo "1859"]
[BlackElo "1622"]

1. d4 {[%clk 01:30:55]} {[%emt 00:00:05]} Nf6 {[%clk 01:30:55]} {[%emt
00:00:05]} 2. Bf4 {[%clk 01:31:20]} {[%emt 00:00:05]} d5 {[%clk 01:31:09]}
{[%emt 00:00:17]} 3. e3 {[%clk 01:31:45]} {[%emt 00:00:05]} Bf5 {[%clk
01:30:58]} {[%emt 00:00:41]} 4. c4 {[%clk 01:32:06]} {[%emt 00:00:09]} c6
{[%clk 01:31:21]} {[%emt 00:00:07]} 5. Nc3 {[%clk 01:32:25]} {[%emt 00:00:11]}
e6 {[%clk 01:31:27]} {[%emt 00:00:23]} 6. Qb3 {[%clk 01:31:58]} {[%emt
00:00:58]} Qd7 {[%clk 01:29:37]} {[%emt 00:02:20]} 7. Nf3 {[%clk 01:32:05]}
{[%emt 00:00:22]} Be7 {[%clk 01:26:20]} {[%emt 00:03:48]} 8. Be2 {[%clk
01:30:58]} {[%emt 00:01:36]} O-O {[%clk 01:26:17]} {[%emt 00:00:33]} 9. Rc1
{[%clk 01:28:17]} {[%emt 00:03:11]} Qc8 {[%clk 01:21:02]} {[%emt 00:05:45]} 10.
O-O {[%clk 01:28:04]} {[%emt 00:00:42]} Nh5 {[%clk 01:17:49]} {[%emt 00:03:44]}
11. cxd5 {[%clk 01:27:06]} {[%emt 00:01:29]} Nxf4 {[%clk 01:17:51]} {[%emt
00:00:28]} 12. exf4 {[%clk 01:27:30]} {[%emt 00:00:06]} exd5 {[%clk 01:17:57]}
{[%emt 00:00:23]} 13. Nxd5 {[%clk 01:26:14]} {[%emt 00:01:46]} Qd7 {[%clk
01:14:10]} {[%emt 00:04:16]} 14. Nxe7+ {[%clk 01:26:07]} {[%emt 00:00:38]} Qxe7
{[%clk 01:14:37]} {[%emt 00:00:03]} 15. Rfe1 {[%clk 01:24:00]} {[%emt
00:02:37]} Qc7 {[%clk 01:11:17]} {[%emt 00:03:50]} 16. g3 {[%clk 01:20:39]}
{[%emt 00:03:52]} Rd8 {[%clk 01:05:52]} {[%emt 00:05:54]} 17. Bc4 {[%clk
01:18:44]} {[%emt 00:02:26]} Bg6 {[%clk 01:01:11]} {[%emt 00:05:10]} 18. Ne5
{[%clk 01:17:26]} {[%emt 00:01:49]} a5 {[%clk 00:42:02]} {[%emt 00:19:38]} 19.
a4 {[%clk 01:15:21]} {[%emt 00:02:36]} Na6 {[%clk 00:41:45]} {[%emt 00:00:47]}
20. f5 {[%clk 01:13:38]} {[%emt 00:02:12]} Bxf5 {[%clk 00:36:51]} {[%emt
00:05:23]} 21. Bxf7+ {[%clk 01:12:00]} {[%emt 00:02:09]} Kh8 {[%clk 00:33:09]}
{[%emt 00:04:13]} 22. Qf3 {[%clk 01:12:07]} {[%emt 00:00:23]} Qc8 {[%clk
00:28:24]} {[%emt 00:05:13]} 23. g4 {[%clk 01:12:17]} {[%emt 00:00:22]} Be6
{[%clk 00:07:49]} {[%emt 00:38:52]} 24. Ng6+ {[%clk 01:12:34]} {[%emt
00:00:14]} 1-0

[Event "NJSK 2022 Jeugd B"]
[Site "Almelo, Netherlands"]
[Date "2022.05.01"]
[Round "1.8"]
[White "De Rooij, Kevin"]
[Black "Alvares, Thomas"]
[Result "1-0"]
[TimeControl "90min/40moves + 30min + 30sec/move"]
[WhiteElo "1584"]
[BlackElo "1789"]

1. c4 {[%clk 01:30:55]} {[%emt 00:00:05]} Nf6 {[%clk 01:30:51]} {[%emt
00:00:09]} 2. Nc3 {[%clk 01:31:11]} {[%emt 00:00:14]} e6 {[%clk 01:31:08]}
{[%emt 00:00:13]} 3. g3 {[%clk 01:28:54]} {[%emt 00:02:48]} d5 {[%clk
01:31:22]} {[%emt 00:00:16]} 4. cxd5 {[%clk 01:28:36]} {[%emt 00:00:48]} exd5
{[%clk 01:31:40]} {[%emt 00:00:12]} 5. d4 {[%clk 01:28:53]} {[%emt 00:00:13]}
c6 {[%clk 01:26:00]} {[%emt 00:06:10]} 6. Bg2 {[%clk 01:22:07]} {[%emt
00:07:15]} Bd6 {[%clk 01:23:22]} {[%emt 00:03:08]} 7. e3 {[%clk 01:17:37]}
{[%emt 00:05:00]} O-O {[%clk 01:19:33]} {[%emt 00:04:19]} 8. Nge2 {[%clk
01:13:00]} {[%emt 00:05:06]} Re8 {[%clk 01:17:27]} {[%emt 00:02:36]} 9. Qc2
{[%clk 01:09:01]} {[%emt 00:04:29]} Nbd7 {[%clk 01:13:11]} {[%emt 00:04:46]} 10.
O-O {[%clk 01:06:03]} {[%emt 00:03:28]} Nf8 {[%clk 01:09:10]} {[%emt 00:04:32]}
11. b3 {[%clk 01:02:09]} {[%emt 00:04:25]} Ne6 {[%clk 01:05:00]} {[%emt
00:04:38]} 12. e4 {[%clk 00:55:58]} {[%emt 00:06:41]} dxe4 {[%clk 01:01:57]}
{[%emt 00:03:34]} 13. Nxe4 {[%clk 00:56:13]} {[%emt 00:00:15]} Nxe4 {[%clk
00:47:00]} {[%emt 00:15:27]} 14. Bxe4 {[%clk 00:55:19]} {[%emt 00:01:25]} h6
{[%clk 00:41:23]} {[%emt 00:06:06]} 15. Be3 {[%clk 00:42:34]} {[%emt 00:13:15]}
Ng5 {[%clk 00:29:44]} {[%emt 00:29:58]} 16. Bg2 {[%clk 00:42:09]} {[%emt
00:00:55]} Bg4 {[%clk 00:25:47]} {[%emt 00:04:27]} 17. Nc3 {[%clk 00:34:47]}
{[%emt 00:07:52]} Rc8 {[%clk 00:21:34]} {[%emt 00:04:43]} 18. Qd3 {[%clk
00:28:56]} {[%emt 00:06:21]} Bb4 {[%clk 00:17:46]} {[%emt 00:04:18]} 19. Rac1
{[%clk 00:25:02]} {[%emt 00:04:24]} Qf6 {[%clk 00:11:26]} {[%emt 00:06:50]} 20.
f4 {[%clk 00:19:59]} {[%emt 00:05:33]} Nh3+ {[%clk 00:00:46]} {[%emt 00:11:10]}
21. Kh1 {[%clk 00:20:02]} {[%emt 00:00:27]} Bf5 {[%clk 00:00:50]} {[%emt
00:00:26]} 22. Qe2 {[%clk 00:17:38]} {[%emt 00:02:49]} Qe6 {[%clk 00:00:52]}
{[%emt 00:00:32]} 23. Rfe1 {[%clk 00:17:18]} {[%emt 00:00:50]} Bxc3 {[%clk
00:00:39]} {[%emt 00:00:44]} 24. Rxc3 {[%clk 00:17:47]} {[%emt 00:00:01]} g5
{[%clk 00:00:55]} {[%emt 00:00:14]} 25. Qf3 {[%clk 00:13:58]} {[%emt 00:04:19]}
Qg6 {[%clk 00:00:40]} {[%emt 00:00:46]} 26. g4 {[%clk 00:13:58]} {[%emt
00:00:30]} Nxf4 {[%clk 00:00:31]} {[%emt 00:00:38]} 27. gxf5 {[%clk 00:13:57]}
{[%emt 00:00:30]} Qxf5 {[%clk 00:00:56]} {[%emt 00:00:06]} 28. Rf1 {[%clk
00:13:48]} {[%emt 00:00:39]} 1-0